lending/lending_fUSD_20251116
["ID","MTS","AMOUNT","RATE_DAILY","PERIOD"]
[394138679,1763317849545,-671.123358,0.000248,7]
[394138680,1763317849554,-671.123358,0.000248,7]
[394138681,1763317849564,-275.190011,0.000248,7]
[394138682,1763317849573,-151.0,0.000248,7]
[394138683,1763317849582,-151.0,0.000248,7]
[394138684,1763317849591,-669.283426,0.000248,7]
[394138685,1763317849601,-151.0,0.000248,7]
[394138686,1763317849610,-669.283426,0.000248,7]
[394138687,1763317849619,-151.0,0.000248,7]
[394138688,1763317849628,-669.283426,0.000248,7]
[394138689,1763317849638,-151.0,0.000248,7]
[394138690,1763317849647,-669.283426,0.000248,7]
[394138691,1763317849657,-151.0,0.000248,7]
[394138692,1763317849666,-151.0,0.000248,7]
[394138693,1763317849675,-151.0,0.000248,7]
[394138694,1763317849684,-151.0,0.000248,7]
[394138695,1763317849693,-151.0,0.000248,7]
[394138696,1763317849703,-151.0,0.000248,7]
[394138697,1763317849712,-151.0,0.000248,7]
[394138698,1763317849721,-180.093633,0.000248,7]
[394138699,1763317849731,-151.0,0.000248,7]
[394138700,1763317849741,-151.0,0.000248,7]
[394138701,1763317849750,-151.0,0.000248,7]
[394138702,1763317849759,-151.0,0.000248,7]
[394138703,1763317849768,-151.0,0.000248,7]
[394138704,1763317849777,-151.0,0.000248,7]
[394138705,1763317849786,-151.0,0.000248,7]
[394138706,1763317849796,-151.0,0.000248,7]
[394138707,1763317849806,-151.0,0.000248,7]
[394138708,1763317849816,-151.0,0.000248,7]
[394138709,1763317849829,-151.0,0.000248,7]
[394138710,1763317849838,-151.0,0.000248,7]
[394138711,1763317849847,-151.0,0.000248,7]
[394138712,1763317849857,-151.0,0.000248,7]
[394138713,1763317849868,-151.0,0.000248,7]
[394138714,1763317849878,-151.0,0.000248,7]
[394138715,1763317849887,-151.0,0.000248,7]
[394138716,1763317849897,-166.453057,0.000248,7]
[394138717,1763317849906,-151.0,0.000248,7]
[394138718,1763317849915,-177.820604,0.000248,7]
[394138719,1763317849925,-177.820604,0.000248,7]
[394138720,1763317849934,-177.820604,0.000248,7]
[394138721,1763317849943,-177.820604,0.000248,7]
[394138722,1763317849952,-151.0,0.000248,7]
[394138723,1763317849961,-151.0,0.000248,7]
[394138724,1763317849971,-629015.55086,0.000248,3]
[394138725,1763317849981,-181.103134,0.000248,7]
[394138726,1763317849990,-151.0,0.000248,7]
[394138727,1763317849999,-151.0,0.000248,7]
[394138728,1763317850008,-767.580442,0.000248,7]
[394138729,1763317850017,-767.580442,0.000248,7]
[394138730,1763317850026,-767.580442,0.000248,7]
[394138731,1763317850035,-151.0,0.000248,7]
[394138732,1763317850044,-767.580442,0.000248,7]
[394138733,1763317850053,-151.0,0.000248,7]
[394138734,1763317850063,-151.0,0.000248,7]
[394138735,1763317850072,-151.0,0.000248,7]
[394138736,1763317850081,-151.0,0.000248,7]
[394138737,1763317850090,-218.042441,0.000248,7]
[394138738,1763317850100,-151.0,0.000248,7]
[394138739,1763317850109,-218.042441,0.000248,7]
[394138740,1763317850118,-218.042441,0.000248,7]
[394138741,1763317850128,-218.042441,0.000248,7]
[394138742,1763317850137,-151.0,0.000248,7]
[394138743,1763317850146,-160.964689,0.000248,7]
[394138744,1763317850155,-235.349869,0.000248,7]
[394138745,1763317850164,-235.349869,0.000248,7]
[394138746,1763317850173,-235.349869,0.000248,7]
[394138747,1763317850181,-235.349869,0.000248,7]
[394138748,1763317850191,-151.0,0.000248,7]
[394138749,1763317850200,-151.0,0.000248,7]
[394138750,1763317850209,-151.0,0.000248,7]
[394138751,1763317850218,-151.0,0.000248,7]
[394138752,1763317850227,-603.713558,0.000248,7]
[394138753,1763317850236,-2649.59735,0.000248,7]
[394138754,1763317850245,-603.713558,0.000248,7]
[394138755,1763317850255,-603.713558,0.000248,7]
[394138756,1763317850264,-2649.59735,0.000248,7]
[394138757,1763317850273,-603.713558,0.000248,7]
[394138758,1763317850282,-2649.59735,0.000248,7]
[394138759,1763317850292,-2649.59735,0.000248,7]
[394138760,1763317850301,-151.0,0.000248,7]
[394138761,1763317850310,-249.696658,0.000248,7]
[394138762,1763317850320,-151.0,0.000248,7]
[394138763,1763317850329,-249.696658,0.000248,7]
[394138764,1763317850339,-249.696658,0.000248,7]
[394138765,1763317850348,-228.843487,0.000248,7]
[394138766,1763317850357,-151.0,0.000248,7]
[394138767,1763317850366,-249.696658,0.000248,7]
[394138768,1763317850375,-151.0,0.000248,7]
[394138769,1763317850384,-151.0,0.000248,7]
[394138770,1763317850393,-151.0,0.000248,7]
[394138771,1763317850403,-151.0,0.000248,7]
[394138772,1763317850412,-206.105128,0.000248,7]
[394138773,1763317850531,-293.763851,0.000248,7]
[394138774,1763317850540,-293.763851,0.000248,7]
[394138775,1763317850549,-293.763851,0.000248,7]
[394138776,1763317850558,-151.0,0.000248,7]
[394138777,1763317850567,-293.763851,0.000248,7]
[394138778,1763317850577,-151.0,0.000248,7]
[394138779,1763317850586,-151.0,0.000248,7]
[394138780,1763317850595,-152.605288,0.000248,7]
[394138781,1763317850604,-299.34934,0.000248,7]
[394138782,1763317850613,-152.605288,0.000248,7]
[394138783,1763317850622,-152.605288,0.000248,7]
[394138784,1763317850632,-151.0,0.000248,7]
[394138785,1763317850641,-151.0,0.000248,7]
[394138786,1763317850651,-152.605288,0.000248,7]
[394138787,1763317850660,-151.0,0.000248,7]
[394138788,1763317850669,-150.0,0.00024877,4]
[394138789,1763317850678,-500.0,0.00024899,2]
[394138790,1763317850687,-500.0,0.00024899,2]
[394138791,1763317850696,-151.0,0.000249,7]
[394138792,1763317850705,-151.0,0.000249,7]
[394138793,1763317850715,-151.0,0.000249,7]
[394138794,1763317850724,-151.0,0.000249,7]
[394138795,1763317850734,-151.0,0.000249,7]
[394138796,1763317850743,-151.0,0.000249,7]
[394138797,1763317850752,-151.0,0.000249,7]
[394138798,1763317850761,-151.0,0.000249,7]
[394138799,1763317850771,-297.850905,0.000249,7]
[394138800,1763317850780,-297.850905,0.000249,7]
[394138801,1763317850789,-181.867096,0.000249,7]
[394138802,1763317850798,-297.850905,0.000249,7]
[394138803,1763317850808,-186.078998,0.000249,7]
[394138804,1763317850821,-181.867096,0.000249,7]
[394138805,1763317850830,-297.850905,0.000249,7]
[394138806,1763317850839,-181.867096,0.000249,7]
[394138807,1763317850848,-186.078998,0.000249,7]
[394138808,1763317850858,-181.867096,0.000249,7]
[394138809,1763317850867,-186.078998,0.000249,7]
[394138810,1763317850876,-186.078998,0.000249,7]
[394138811,1763317850886,-151.0,0.000249,7]
[394138812,1763317850895,-151.0,0.000249,7]
[394138813,1763317850905,-151.0,0.000249,7]
[394138814,1763317850914,-151.0,0.000249,7]
[394138815,1763317850923,-239.166881,0.000249,7]
[394138816,1763317850932,-151.0,0.000249,7]
[394138817,1763317850941,-157.055438,0.000249,7]
[394138818,1763317850950,-151.0,0.000249,7]
[394138819,1763317850959,-299.701289,0.000249,7]
[394138820,1763317850968,-299.701289,0.000249,7]
[394138821,1763317850978,-299.701289,0.000249,7]
[394138822,1763317850987,-299.70129091,0.000249,7]
[394138823,1763317850996,-151.0,0.000249,7]
[394138824,1763317851005,-151.0,0.000249,7]
[394138825,1763317851015,-151.0,0.000249,7]
[394138826,1763317851024,-151.0,0.000249,7]
[394138827,1763317851034,-151.0,0.000249,7]
[394138828,1763317851043,-151.0,0.000249,7]
[394138829,1763317851052,-151.0,0.000249,7]
[394138830,1763317851061,-671.123358,0.000249,7]
[394138831,1763317851070,-671.123358,0.000249,7]
[394138832,1763317851080,-671.123358,0.000249,7]
[394138833,1763317851089,-671.123358,0.000249,7]
[394138834,1763317851098,-151.0,0.000249,7]
[394138835,1763317851107,-151.0,0.000249,7]
[394138836,1763317851116,-669.283426,0.000249,7]
[394138837,1763317851125,-151.0,0.000249,7]
[394138838,1763317851134,-669.283426,0.000249,7]
[394138839,1763317851144,-669.283426,0.000249,7]
[394138840,1763317851153,-151.0,0.000249,7]
[394138841,1763317851162,-669.283426,0.000249,7]
[394138842,1763317851171,-151.0,0.000249,7]
[394138843,1763317851180,-151.0,0.000249,7]
[394138844,1763317851190,-230.226944,0.000249,7]
[394138845,1763317851198,-151.0,0.000249,7]
[394138846,1763317851207,-270.835263,0.000249,7]
[394138847,1763317851217,-481.41,0.000249,7]
[394138848,1763317851225,-151.0,0.000249,7]
[394138849,1763317851235,-151.0,0.000249,7]
[394138850,1763317851243,-151.0,0.000249,7]
[394138851,1763317851253,-151.0,0.000249,7]
[394138852,1763317851262,-151.0,0.000249,7]
[394138853,1763317851271,-151.0,0.000249,7]
[394138854,1763317851280,-151.0,0.000249,7]
[394138855,1763317851289,-151.0,0.000249,7]
[394138856,1763317851299,-151.0,0.000249,7]
[394138857,1763317851308,-400.0,0.000249,9]
[394138858,1763317851317,-151.0,0.000249,7]
[394138859,1763317851326,-151.0,0.000249,7]
[394138860,1763317851336,-286.065091,0.000249,7]
[394138861,1763317851345,-151.0,0.000249,7]
[394138862,1763317851355,-151.0,0.000249,7]
[394138863,1763317851364,-151.0,0.000249,7]
[394138864,1763317851374,-278.86233,0.000249,7]
[394138865,1763317851383,-151.0,0.000249,7]
[394138866,1763317851393,-151.0,0.000249,7]
[394138867,1763317851403,-151.0,0.000249,7]
[394138868,1763317851412,-245.485694,0.000249,7]
[394138869,1763317851421,-177.820604,0.000249,7]
[394138870,1763317851431,-177.820604,0.000249,7]
[394138871,1763317851440,-177.820604,0.000249,7]
[394138872,1763317851449,-177.820595,0.000249,7]
[394138873,1763317851459,-151.0,0.000249,7]
[394138874,1763317851468,-151.0,0.000249,7]
[394138875,1763317851477,-151.0,0.000249,7]
[394138876,1763317851486,-151.0,0.000249,7]
[394138877,1763317851495,-767.580442,0.000249,7]
[394138878,1763317851505,-767.580442,0.000249,7]
[394138879,1763317851514,-767.580442,0.000249,7]
[394138880,1763317851523,-767.580437,0.000249,7]
[394138881,1763317851532,-151.0,0.000249,7]
[394138882,1763317851542,-151.0,0.000249,7]
[394138883,1763317851551,-151.0,0.000249,7]
[394138884,1763317851561,-151.0,0.000249,7]
[394138885,1763317851570,-215553.74104479,0.000249,2]
[394138886,1763317852050,-254.07394571,0.000249,2]
[394138887,1763317852312,-940.372799,0.00020099,2]
[394138888,1763317852334,-402.367079,0.00020099,2]
[394138889,1763317852352,-1342.739878,0.00020099,2]
[394138890,1763317852368,-1342.739878,0.00022224,2]
[394138891,1763317852388,-151.0,0.00022224,2]
[394138892,1763317852408,-151.0,0.00024658,7]
[394138893,1763317852427,-151.0,0.00024658,7]
[394138894,1763317852445,-151.0,0.00024658,7]
[394138895,1763317852463,-151.0,0.00024658,7]
[394138896,1763317852480,-95.7446045,0.00024767,7]
[394138897,1763317852507,-303.05033877,0.00022224,2]
[394138898,1763317852522,-1039.68953923,0.00022224,2]
[394138899,1763317852539,-1246.9952735,0.00024767,7]
[394138900,1763317852555,-151.0,0.00024767,7]
[394138901,1763317852570,-1342.739878,0.00024767,7]
[394138902,1763317852584,-1342.739878,0.000248,7]
[394138903,1763317852600,-151.0,0.000248,7]
[394138904,1763317852616,-1342.739878,0.000248,7]
[394138905,1763317852633,-4502.1850095,0.000249,2]
[394138906,1763317852649,-346.92554585,0.00024962,2]
[394138907,1763317852664,-151.0,0.00024962,2]
[394138908,1763317852680,-298.26089446,0.00024962,2]
[394138909,1763317852695,-688.49839244,0.00024964,2]
[394138910,1763317852711,-500.0,0.00024999,2]
[394138911,1763317852725,-602.25446593,0.00025,2]
[394138912,1763317852742,-205.32476032,0.00025,2]
[394138913,1763317852757,-1765.92228219,0.00025,2]
[394138914,1763317852771,-160.40605547,0.00025,2]
[394138915,1763317852786,-360.0,0.00025,2]
[394138916,1763317852801,-5916.17776993,0.00025,2]
[394138917,1763317852815,-3011.90817493,0.00025,2]
[394138918,1763317852832,-7060.68590776,0.00025,2]
[394138919,1763317852847,-1052.97718914,0.00025,2]
[394138920,1763317852862,-165.49938845,0.00025,2]
[394138921,1763317852877,-2561.63585085,0.00025,2]
[394138922,1763317852893,-18639.0,0.00025088,2]
[394138923,1763317852909,-933.39948,0.0002512,2]
[394138924,1763317852924,-184.9262,0.00025327,2]
[394138925,1763317852938,-500.0,0.00025389,2]
[394138926,1763317852953,-1613.0,0.0002541,2]
[394138927,1763317852966,-500.0,0.00025414,2]
[394138928,1763317852980,-479.06402154,0.000255,3]
[394138929,1763317852995,-479.06402154,0.000255,7]
[394138930,1763317853010,-713.97283296,0.00025512,2]
[394138931,1763317853024,-5518.0,0.000256,3]
[394138932,1763317853038,-457.17151397,0.00025675,2]
[394138933,1763317853053,-1677.50393996,0.00025741,2]
[394138934,1763317853067,-479.16,0.00025808,2]
[394138935,1763317853082,-151.0,0.000259,7]
[394138936,1763317853096,-152.748032,0.000259,7]
[394138937,1763317853111,-151.0,0.000259,7]
[394138938,1763317853126,-151.0,0.000259,7]
[394138939,1763317853141,-273.663209,0.000259,7]
[394138940,1763317853157,-594.15617168,0.0002599,2]
[394138941,1763317853172,-151.0,0.0002599,7]
[394138942,1763317853188,-151.0,0.0002599,7]
[394138943,1763317853199,-151.0,0.0002599,7]
[394138944,1763317853209,-280.368315,0.0002599,7]
[394138945,1763317853218,-151.0,0.0002599,7]
[394138946,1763317853228,-4138.65,0.00026,2]
[394138947,1763317853237,-21167.465986,0.00026,2]
[394138948,1763317853247,-214.16688223,0.00026,2]
[394138949,1763317853256,-161.20690297,0.00026,2]
[394138950,1763317853265,-218.042441,0.00026,7]
[394138951,1763317853274,-218.042441,0.00026,7]
[394138952,1763317853284,-218.042441,0.00026,7]
[394138953,1763317853294,-218.042447,0.00026,7]
[394138954,1763317853303,-240.358672,0.00026,7]
[394138955,1763317853313,-235.349869,0.00026,7]
[394138956,1763317853323,-235.349869,0.00026,7]
[394138957,1763317853333,-235.349869,0.00026,7]
[394138958,1763317853343,-227.374883,0.00026,7]
[394138959,1763317853353,-235.349877,0.00026,7]
[394138960,1763317853362,-151.0,0.00026,7]
[394138961,1763317853372,-151.0,0.00026,7]
[394138962,1763317853695,-151.0,0.00026,7]
[394138963,1763317853714,-603.713558,0.00026,7]
[394138964,1763317853724,-603.713558,0.00026,7]
[394138965,1763317853734,-2649.59735,0.00026,7]
[394138966,1763317853744,-603.713558,0.00026,7]
[394138967,1763317853753,-2649.59735,0.00026,7]
[394138968,1763317853763,-603.713553,0.00026,7]
[394138969,1763317853772,-2649.59735,0.00026,7]
[394138970,1763317853782,-2649.597358,0.00026,7]
[394138971,1763317853792,-151.0,0.00026,7]
[394138972,1763317853802,-249.696658,0.00026,7]
[394138973,1763317853814,-249.696658,0.00026,7]
[394138974,1763317853824,-151.0,0.00026,7]
[394138975,1763317853833,-249.696658,0.00026,7]
[394138976,1763317853843,-183.906733,0.00026,7]
[394138977,1763317853852,-249.69665,0.00026,7]
[394138978,1763317853862,-151.0,0.00026,7]
[394138979,1763317853872,-151.0,0.00026,7]
[394138980,1763317853881,-151.0,0.00026,7]
[394138981,1763317853891,-234.803595,0.00026,7]
[394138982,1763317853901,-293.763851,0.00026,7]
[394138983,1763317853910,-293.763851,0.00026,7]
[394138984,1763317853919,-293.763851,0.00026,7]
[394138985,1763317853929,-151.0,0.00026,7]
[394138986,1763317853938,-293.763845,0.00026,7]
[394138987,1763317853947,-151.0,0.00026,7]
[394138988,1763317853956,-151.0,0.00026,7]
[394138989,1763317853965,-152.605288,0.00026,7]
[394138990,1763317853975,-152.605288,0.00026,7]
[394138991,1763317853984,-152.605288,0.00026,7]
[394138992,1763317853994,-151.0,0.00026,7]
[394138993,1763317854003,-151.0,0.00026,7]
[394138994,1763317854013,-152.605288,0.00026,7]
[394138995,1763317854023,-151.0,0.00026,7]
[394138996,1763317854032,-1342.739878,0.00026,7]
[394138997,1763317854042,-151.0,0.00026,7]
[394138998,1763317854051,-1342.739878,0.00026,7]
[394138999,1763317854060,-1000.0,0.00026027,2]
[394139000,1763317854069,-740.38982778,0.0002606,2]
[394139001,1763317854079,-166.66,0.00026078,2]
[394139002,1763317854088,-479.06402154,0.000263,3]
[394139003,1763317854098,-5518.0,0.000263,5]
[394139004,1763317854108,-1000.0,0.00026301,2]
[394139005,1763317854118,-359.76179104,0.00026331,2]
[394139006,1763317854127,-151.0,0.00026331,2]
[394139007,1763317854137,-309.29654756,0.00026331,2]
[394139008,1763317854146,-300.0,0.00026435,10]
[394139009,1763317854156,-300.0,0.00026435,10]
[394139010,1763317854165,-666.0,0.00026435,2]
[394139011,1763317854174,-1599.0,0.00026436,2]
[394139012,1763317854183,-821.0,0.00026436,2]
[394139013,1763317854193,-793.0,0.00026436,2]
[394139014,1763317854202,-1275.0,0.00026436,2]
[394139015,1763317854211,-907.0,0.00026436,2]
[394139016,1763317854220,-1190.0,0.00026436,2]
[394139017,1763317854230,-575.0,0.00026436,2]
[394139018,1763317854239,-3430.0,0.00026436,2]
[394139019,1763317854248,-608.0,0.00026436,2]
[394139020,1763317854258,-1000.0,0.00026575,2]
[394139021,1763317854267,-481.41,0.000266,7]
[394139022,1763317854276,-767.7842514,0.00026608,2]
[394139023,1763317854285,-781.16,0.00026676,2]
[394139024,1763317854295,-1191.13830857,0.00026815,2]
[394139025,1763317854304,-500.0,0.00026848,2]
[394139026,1763317854314,-1000.0,0.00026849,2]
[394139027,1763317854323,-500.0,0.00026936,2]
[394139028,1763317854332,-500.0,0.00026936,2]
[394139029,1763317854342,-166.66,0.00026939,2]
[394139030,1763317854351,-500.0,0.00026946,2]
[394139031,1763317854361,-500.0,0.00026946,2]
[394139032,1763317854370,-500.0,0.00026946,2]
[394139033,1763317854379,-619.28213352,0.00026946,2]
[394139034,1763317854389,-250.0,0.00027,2]
[394139035,1763317854398,-1022.6180112,0.00027,2]
[394139036,1763317854407,-530.0,0.00027,2]
[394139037,1763317854417,-150.0,0.00027082,2]
[394139038,1763317854427,-933.39949,0.0002712,2]
[394139039,1763317854436,-1000.0,0.00027123,2]
[394139040,1763317854445,-266.16,0.00027123,4]
[394139041,1763317854455,-3646.54,0.00027123,2]
[394139042,1763317854464,-796.19226871,0.00027156,2]
[394139043,1763317854473,-419.21326008,0.000273,2]
[394139044,1763317854482,-300.0,0.00027312,10]
[394139045,1763317854491,-300.0,0.00027312,10]
[394139046,1763317854500,-666.0,0.00027312,2]
[394139047,1763317854510,-300.0,0.00027354,10]
[394139048,1763317854520,-300.0,0.00027354,10]
[394139049,1763317854529,-300.0,0.00027389,10]
[394139050,1763317854538,-300.0,0.00027389,10]
[394139051,1763317854548,-4066.36036739,0.0002739,2]
[394139052,1763317854557,-8033.14064952,0.0002739,2]
[394139053,1763317854566,-166.20497429,0.00027397,7]
[394139054,1763317854575,-291.27422815,0.00027397,7]
[394139055,1763317854584,-500.0,0.00027397,4]
[394139056,1763317854593,-500.0,0.00027397,4]
[394139057,1763317854603,-500.0,0.00027397,4]
[394139058,1763317854612,-500.0,0.00027397,4]
[394139059,1763317854621,-500.0,0.00027397,4]
[394139060,1763317854630,-500.0,0.00027397,4]
[394139061,1763317854639,-500.0,0.00027397,4]
[394139062,1763317854648,-500.0,0.00027397,4]
[394139063,1763317854657,-1429.89,0.00027397,2]
[394139064,1763317854667,-300.0,0.00027397,2]
[394139065,1763317854675,-495.27,0.00027397,2]
[394139066,1763317854685,-157.19997091,0.00027397,5]
[394139067,1763317854694,-500.19183287,0.00027397,5]
[394139068,1763317854703,-1000.0,0.00027397,2]
[394139069,1763317854713,-158.3852086,0.00027397,5]
[394139070,1763317854722,-1289.4,0.000274,7]
[394139071,1763317854732,-2064.02,0.000274,2]
[394139072,1763317854741,-168.1,0.000274,7]
[394139073,1763317854750,-227.29861537,0.00027416,2]
[394139074,1763317854760,-198.90276558,0.000275,2]
[394139075,1763317854769,-543.35707585,0.000275,2]
[394139076,1763317854778,-282.5484563,0.00027616,30]
[394139077,1763317854788,-1000.0,0.00027671,2]
[394139078,1763317854798,-4877.29,0.00027671,2]
[394139079,1763317854807,-300.0,0.00027698,10]
[394139080,1763317854817,-300.0,0.00027698,10]
[394139081,1763317854830,-373.07297731,0.000277,2]
[394139082,1763317854839,-151.0,0.000277,2]
[394139083,1763317854848,-320.74051982,0.000277,2]
[394139084,1763317854858,-825.65138265,0.00027704,2]
[394139085,1763317854867,-2258.0,0.00027773,2]
[394139086,1763317854877,-166.66,0.000278,2]
[394139087,1763317854886,-926.0,0.0002789,2]
[394139088,1763317854895,-282.5484563,0.0002789,30]
[394139089,1763317854905,-1000.0,0.00027945,2]
[394139090,1763317854915,-151.0,0.00028,2]
[394139091,1763317854924,-160.0,0.00028,2]
[394139092,1763317854933,-479.06402154,0.00028,10]
[394139093,1763317854943,-479.06402154,0.00028,10]
[394139094,1763317854951,-926.0,0.00028035,2]
[394139095,1763317854960,-2000.0,0.000281,2]
[394139096,1763317854970,-926.0,0.00028176,7]
[394139097,1763317854979,-235.45704692,0.00028219,30]
[394139098,1763317854989,-1000.0,0.00028219,2]
[394139099,1763317854998,-150.0,0.00028219,2]
[394139100,1763317855008,-457.17151397,0.00028286,2]
[394139101,1763317855018,-394.0,0.00028308,2]
[394139102,1763317855027,-394.0,0.00028462,2]
[394139103,1763317855036,-394.0,0.00028469,2]
[394139104,1763317855046,-1000.0,0.00028493,2]
[394139105,1763317855055,-394.0,0.00028512,2]
[394139106,1763317855064,-227.29861537,0.0002857,56]
[394139107,1763317855074,-166.66,0.00028661,2]
[394139108,1763317855083,-1000.0,0.00028767,2]
[394139109,1763317855092,-168.1,0.000288,7]
[394139110,1763317855101,-230.56193462,0.00028873,30]
[394139111,1763317855110,-300.0,0.00028999,10]
[394139112,1763317855120,-300.0,0.00028999,10]
[394139113,1763317855129,-300.0,0.00028999,10]
[394139114,1763317855138,-666.0,0.00028999,10]
[394139115,1763317855147,-11082.92023181,0.00029,2]
[394139116,1763317855156,-749.98999144,0.00029,2]
[394139117,1763317855165,-1929.86988243,0.00029,2]
[394139118,1763317855175,-1000.0,0.00029041,2]
[394139119,1763317855184,-386.87667747,0.00029069,2]
[394139120,1763317855193,-151.0,0.00029069,2]
[394139121,1763317855203,-332.60791905,0.00029069,2]
[394139122,1763317855214,-151.0,0.00029071,7]
[394139123,1763317855224,-151.0,0.00029071,7]
[394139124,1763317855233,-188.455529,0.00029071,7]
[394139125,1763317855243,-151.0,0.00029071,7]
[394139126,1763317855252,-151.0,0.00029071,7]
[394139127,1763317855261,-590.0,0.00029152,2]
[394139128,1763317855271,-300.0,0.00029226,10]
[394139129,1763317855280,-300.0,0.00029226,10]
[394139130,1763317855289,-156.40103657,0.00029226,10]
[394139131,1763317855298,-297.850905,0.00029227,7]
[394139132,1763317855308,-297.850905,0.00029227,7]
[394139133,1763317855318,-297.850905,0.00029227,7]
[394139134,1763317855327,-181.867096,0.00029227,7]
[394139135,1763317855336,-181.867096,0.00029227,7]
[394139136,1763317855345,-186.078998,0.00029227,7]
[394139137,1763317855354,-297.850903,0.00029227,7]
[394139138,1763317855364,-181.867096,0.00029227,7]
[394139139,1763317855374,-186.078998,0.00029227,7]
[394139140,1763317855383,-186.078998,0.00029227,7]
[394139141,1763317855393,-181.867088,0.00029227,7]
[394139142,1763317855402,-186.078998,0.00029227,7]
[394139143,1763317855412,-590.0,0.00029233,2]
[394139144,1763317855421,-300.0,0.00029257,10]
[394139145,1763317855430,-151.0,0.00029258,7]
[394139146,1763317855440,-151.0,0.00029258,7]
[394139147,1763317855449,-512.34887965,0.00029259,10]
[394139148,1763317855459,-1528.92,0.00029272,30]
[394139149,1763317855469,-394.0,0.00029287,7]
[394139150,1763317855478,-590.0,0.00029291,2]
[394139151,1763317855488,-394.0,0.00029292,2]
[394139152,1763317855497,-2064.02,0.000293,2]
[394139153,1763317855507,-3577.67,0.000293,14]
[394139154,1763317855515,-151.0,0.000293,7]
[394139155,1763317855525,-187.966846,0.000293,7]
[394139156,1763317855535,-154.916495,0.000293,7]
[394139157,1763317855544,-151.0,0.000293,7]
[394139158,1763317855554,-204.456831,0.000293,7]
[394139159,1763317855563,-1000.0,0.00029315,2]
[394139160,1763317855573,-590.0,0.00029344,2]
[394139161,1763317855582,-590.0,0.00029355,2]
[394139162,1763317855591,-590.0,0.00029361,2]
[394139163,1763317855600,-590.0,0.00029386,7]
[394139164,1763317855609,-1289.4,0.000294,7]
[394139165,1763317855619,-590.0,0.00029433,2]
[394139166,1763317855628,-151.0,0.00029436,7]
[394139167,1763317855637,-151.0,0.00029436,7]
[394139168,1763317855647,-671.123358,0.00029436,7]
[394139169,1763317855656,-671.123358,0.00029436,7]
[394139170,1763317855665,-671.123358,0.00029436,7]
[394139171,1763317855674,-671.123359,0.00029436,7]
[394139172,1763317855683,-227.373261,0.00029436,7]
[394139173,1763317855693,-151.0,0.00029436,7]
[394139174,1763317855703,-669.283426,0.00029436,7]
[394139175,1763317855712,-151.0,0.00029436,7]
[394139176,1763317855722,-669.283426,0.00029436,7]
[394139177,1763317855732,-669.283426,0.00029436,7]
[394139178,1763317855742,-151.0,0.00029436,7]